[Event "WCCC U12 2019"]
[Site "Weifang"]
[Date "2019.08.21"]
[Round "1"]
[White "Pingin, Artem"]
[Black "Steiner, Adamson"]
[Result "1-0"]
[ECO "D40"]
[WhiteElo "2155"]
[BlackElo "1561"]
[Annotator "ChessBase"]
[PlyCount "51"]
[EventDate "2019.08.21"]
[EventType "swiss"]
[EventCountry "CHN"]
[SourceTitle "playchess.com"]
[Source "ChessBase"]
[SourceQuality "1"]
[TimeControl "40/5400+30:1800+30"]

1. c4 (1. c4 e6 2. Nf3 d5 3. e3 c5 4. d4 Nc6 5. Nc3 Nf6 6. a3 a6 7. cxd5 exd5) 1... e6 2. Nf3 d5 3. e3 c5 4. d4 Nc6 5. Nc3 Nf6 6. a3 a6 7. cxd5 exd5 8. Be2 Bd6 9. dxc5 Bxc5 10. b4 Ba7 11. b5 axb5 12. Nxb5 O-O 13. Nxa7 Rxa7 14. O-O Ne4 15. Bb2 Be6 16. Nd4 Qg5 17. f4 Qh6 18. Rc1 Ne7 19. Rc7 Nc8 20. Bg4 Ncd6 21. Nxe6 Ne8 22. Nxf8 Nxc7 23. Nd7 f6 24. Qc2 b5 25. Bd4 Rb7 26. Qc6 1-0

[Event "WCCC U12 2019"]
[Site "Weifang"]
[Date "2019.08.21"]
[Round "1"]
[White "Ochirbat, Lkhagvajamts"]
[Black "Ren, Xiang"]
[Result "1-0"]
[ECO "D93"]
[WhiteElo "2137"]
[BlackElo "1542"]
[Annotator "ChessBase"]
[PlyCount "138"]
[EventDate "2019.08.21"]
[EventType "swiss"]
[EventCountry "CHN"]
[SourceTitle "playchess.com"]
[Source "ChessBase"]
[SourceQuality "1"]
[TimeControl "40/5400+30:1800+30"]

1. d4 Nf6 2. c4 g6 3. Nc3 d5 4. Nf3 Bg7 5. Bf4 O-O 6. e3 c5 7. dxc5 Qa5 8. Rc1 dxc4 9. Bxc4 Qxc5 10. Bb3 Nc6 11. O-O Qh5 12. Nd2 Nb4 13. Bc4 Qxd1 14. Rfxd1 Be6 15. Bxe6 fxe6 16. Nf3 Nfd5 17. Be5 Bxe5 18. Nxe5 Rac8 19. a3 Nxc3 20. Rxc3 Nd5 21. Rxc8 Rxc8 22. e4 Nb6 23. h4 Rc2 24. b3 Rc3 25. Rd3 Rxd3 26. Nxd3 Nd7 27. e5 Kf7 28. f4 Ke8 29. Kf2 Kd8 30. Kf3 a5 31. Kg4 Ke8 32. Kg5 Kf7 33. Kh6 Kg8 34. h5 gxh5 35. Kxh5 Kg7 36. g3 b6 37. b4 axb4 38. Nxb4 Nc5 39. Nc6 Ne4 40. Kg4 Kf8 41. Nd8 Nc5 42. Kh5 Kg7 43. g4 b5 44. Kh4 Kf8 45. Nc6 Nd3 46. Kg3 Ke8 47. Nd4 b4 48. axb4 Nxb4 49. Nxe6 Kf7 50. Ng5+ Kg6 51. Ne4 Nc6 52. f5+ Kg7 53. Kf4 h6 54. Nc3 Kf7 55. Nd5 Nd4 56. e6+ Kf8 57. Ke4 Nc6 58. Nf4 Nd8 59. f6 exf6 60. Kf5 Nb7 61. Kxf6 Nc5 62. Nd5 Ne4+ 63. Ke5 Ng5 64. Kf6 Ne4+ 65. Kg6 Ng5 66. e7+ Ke8 67. Kxh6 Nf7+ 68. Kg7 Ng5 69. Kg6 Ne6 1-0

[Event "WCCC U12 2019"]
[Site "Weifang"]
[Date "2019.08.21"]
[Round "1"]
[White "Sethuraman, Sandeep"]
[Black "Abdullayev, Ayat"]
[Result "0-1"]
[ECO "E68"]
[WhiteElo "2112"]
[BlackElo "1537"]
[Annotator "ChessBase"]
[PlyCount "54"]
[EventDate "2019.08.21"]
[EventType "swiss"]
[EventCountry "CHN"]
[SourceTitle "playchess.com"]
[Source "ChessBase"]
[SourceQuality "1"]
[TimeControl "40/5400+30:1800+30"]

1. d4 Nf6 2. c4 g6 3. g3 Bg7 4. Bg2 d6 5. Nf3 O-O 6. Nc3 Nbd7 7. O-O e5 8. e4 Re8 9. h3 exd4 10. Nxd4 Nc5 11. Re1 Bd7 12. Kh2 h5 13. Rb1 a5 14. Bg5 Ng4+ 15. hxg4 Qxg5 16. gxh5 Bg4 17. f3 Qxh5+ 18. Kg1 Be6 19. Nd5 Bxd5 20. cxd5 f5 21. Nb5 Rac8 22. Qd2 fxe4 23. fxe4 Be5 24. Re3 Qg5 25. Kh2 Bxg3+ 26. Kg1 Nxe4 27. Qd3 Bf2+ 0-1

[Event "WCCC U12 2019"]
[Site "Weifang"]
[Date "2019.08.21"]
[Round "1"]
[White "Cheon, Sehyuk"]
[Black "Dev, Shah"]
[Result "0-1"]
[ECO "C56"]
[WhiteElo "1561"]
[BlackElo "2161"]
[Annotator "ChessBase"]
[PlyCount "76"]
[EventDate "2019.08.21"]
[EventType "swiss"]
[EventCountry "CHN"]
[SourceTitle "playchess.com"]
[Source "ChessBase"]
[SourceQuality "1"]
[TimeControl "40/5400+30:1800+30"]

1. e4 (1. e4) 1... e5 2. Nf3 Nc6 3. d4 exd4 4. Bc4 Nf6 5. e5 d5 6. Bb5 Nd7 7. Bxc6 bxc6 8. Nxd4 Nb8 9. O-O Be7 10. c3 O-O 11. Re1 c5 12. Nb3 Be6 13. Be3 Nd7 14. Qc2 c4 15. Nd4 Nxe5 16. Bf4 Nd3 17. Rxe6 fxe6 18. Nxe6 Qd7 19. Nxf8 Rxf8 20. Be3 Qg4 21. Nd2 Bg5 22. Nf1 Bxe3 23. Nxe3 Qg5 24. Rf1 Rxf2 25. Rxf2 Qxe3 26. Qe2 Qxf2+ 27. Qxf2 Nxf2 28. Kxf2 Kf7 29. Ke3 Ke6 30. Kf4 c5 31. h3 h6 32. h4 g6 33. g3 Kf6 34. g4 g5+ 35. hxg5+ hxg5+ 36. Kf3 Ke5 37. Ke3 d4+ 38. Kf3 Kd5 0-1

[Event "WCCC U12 2019"]
[Site "Weifang"]
[Date "2019.08.21"]
[Round "1"]
[White "Xiu, Yixuan"]
[Black "Navumenka, Mikhei"]
[Result "0-1"]
[ECO "A50"]
[WhiteElo "1556"]
[BlackElo "2148"]
[Annotator "ChessBase"]
[PlyCount "144"]
[EventDate "2019.08.21"]
[EventType "swiss"]
[EventCountry "CHN"]
[SourceTitle "playchess.com"]
[Source "ChessBase"]
[SourceQuality "1"]
[TimeControl "40/5400+30:1800+30"]

1. d4 Nf6 2. c4 b6 3. Nf3 Bb7 4. e3 e6 5. Be2 Be7 6. O-O O-O 7. Nc3 d5 8. cxd5 exd5 9. Qb3 Nbd7 10. Rd1 c6 11. Bd2 Bd6 12. Be1 Re8 13. h3 Ne4 14. Rac1 f5 15. Bd3 Kh8 16. Ne2 Qf6 17. Bb4 Bc7 18. Qa4 a5 19. Be1 Bd6 20. Nf4 b5 21. Bxb5 Bxf4 22. exf4 Nb6 23. Qb3 cxb5 24. Rc7 Nd6 25. Ne5 Nbc4 26. f3 Rac8 27. Rxc8 Rxc8 28. Bf2 Bc6 29. Qc2 Be8 30. Qe2 Nxe5 31. dxe5 Qe6 32. Qd3 Nc4 33. b3 Bf7 34. bxc4 dxc4 35. Qa3 c3 36. Qxa5 c2 37. Rc1 Qd5 38. Be3 Qd3 39. Kf2 Bc4 40. Re1 Be6 41. Rc1 h6 42. Qd2 Qxd2+ 43. Bxd2 Bxa2 44. Ke3 Kg8 45. Kd3 Kf7 46. Ra1 Bb3 47. Ra3 Rd8+ 48. Ke3 Ba4 49. Rc3 Rb8 50. Ra3 Rc8 51. Ra1 Ke6 52. g4 g6 53. Kd3 h5 54. Rc1 Kd5 55. Ra1 hxg4 56. hxg4 Rc6 57. gxf5 gxf5 58. Rc1 Rc4 59. Ra1 Rc8 60. Be3 Ra8 61. Kc3 Rh8 62. Bd2 Rh3 63. Rf1 Rg3 64. Be3 Rg2 65. Bc1 Rg8 66. Be3 Rc8+ 67. Kb4 Rc4+ 68. Ka5 Rc3 69. Re1 Rxe3 70. Rxe3 c1=Q 71. Rd3+ Ke6 72. Rd6+ Ke7 0-1

[Event "WCCC U12 2019"]
[Site "Weifang"]
[Date "2019.08.21"]
[Round "1"]
[White "Zhu, Matthew"]
[Black "Milikow, Elie"]
[Result "0-1"]
[ECO "B33"]
[WhiteElo "1539"]
[BlackElo "2134"]
[Annotator "ChessBase"]
[PlyCount "50"]
[EventDate "2019.08.21"]
[EventType "swiss"]
[EventCountry "CHN"]
[SourceTitle "playchess.com"]
[Source "ChessBase"]
[SourceQuality "1"]
[TimeControl "40/5400+30:1800+30"]

1. e4 (1. e4) 1... c5 2. Nf3 Nc6 3. d4 cxd4 4. Nxd4 Nf6 5. Nc3 e5 6. Nxc6 bxc6 7. Bc4 h6 8. O-O Bc5 9. Qe2 O-O 10. Be3 Bb4 11. Bd2 Rb8 12. a3 Ba5 13. b4 Bc7 14. Rfd1 d5 15. exd5 cxd5 16. Be3 d4 17. Nb5 Bb6 18. a4 a6 19. Na3 Qe7 20. Bd2 Bg4 21. Qe1 Bxd1 22. Rxd1 e4 23. a5 Ba7 24. b5 axb5 25. Bxb5 Ng4 0-1

[Event "WCCC U12 2019"]
[Site "Weifang"]
[Date "2019.08.21"]
[Round "1"]
[White "Lo, Jonathan"]
[Black "Wu, David Tai-Wei"]
[Result "0-1"]
[ECO "C92"]
[WhiteElo "1529"]
[BlackElo "2083"]
[Annotator "NA"]
[PlyCount "174"]
[EventDate "2019.08.21"]
[EventType "swiss"]
[EventCountry "CHN"]
[SourceTitle "playchess.com"]
[Source "ChessBase"]
[SourceQuality "1"]
[TimeControl "40/5400+30:1800+30"]

1. e4 (1. e4) 1... e5 2. Nf3 Nc6 3. Bb5 a6 4. Ba4 Nf6 5. O-O Be7 6. Re1 b5 7. Bb3 d6 8. c3 O-O 9. h3 Bb7 10. d4 Re8 11. Ng5 Rf8 12. f4 h6 {C92: Closed Ruy Lopez: 9...Be6, Karpov and Flohr-Zaitsev Variations} (12... exf4 13. Bxf4 Na5 14. Bc2 Nd5 15. exd5 Bxg5 16. Qh5 h6 17. Nd2 Bxd5 18. Ne4 Bxf4 19. Qf5 g6 20. Nf6+ Kg7 21. Nh5+ gxh5 22. Qh7+ Kf6 23. Qf5+ Kg7 24. Qh7+ Kf6 25. Qf5+ {½-½ (25) Djukic,N (2523)-Erdos,V (2627) Batumi 2018}) 13. Nf3 Re8 14. Bc2 exd4 15. Nxd4 d5 $146 ({Predecessor:} 15... Nxd4 16. cxd4 c5 17. e5 Nd7 18. Qd3 Nf8 19. Be3 cxd4 20. Bxd4 dxe5 21. Rxe5 Bf6 22. Nc3 Bxe5 23. fxe5 b4 24. Ne4 Qd5 25. Rd1 Rac8 26. Bb1 Qxe4 {0-1 (26) Wilshusen,H (1700)-Beketsky,E ICCF email 2012}) 16. e5 Ne4 17. Nf5 Bc5+ 18. Be3 Bxe3+ 19. Rxe3 Ne7 20. Nxe7+ Qxe7 21. Nd2 Qc5 22. Qe1 f5 23. Kh2 Rad8 24. Nxe4 dxe4 25. Rg3 Kh7 26. Qe2 g6 27. Re3 Qd5 28. Qf2 Qc5 29. Qe1 Bd5 30. b3 Be6 31. Re2 Rd5 32. a4 Qb6 33. axb5 axb5 34. Rd1 Red8 35. Red2 Qc5 36. Rxd5 Rxd5 37. Rxd5 Qxd5 38. Qh4 Qd7 39. Bd1 Qg7 40. Qf2 Qd7 41. Qh4 Bf7 42. Be2 c6 43. b4 Qe6 44. Bf1 Kg7 45. Be2 Kh7 46. Bf1 Qd7 47. Qf6 Bd5 48. Qh4 Qg7 49. Qf2 g5 50. g3 Qe7 51. Be2 Kg6 52. Qb6 Kg7 53. Qd4 Kh7 54. Bh5 Qg7 55. Qe3 Kg8 56. Be2 Qe7 57. Qb6 Qg7 58. Qd8+ Kh7 59. Qc8 Qf7 60. Qd8 Qg7 61. Qc8 Qf7 62. Qd8 gxf4 63. gxf4 Be6 64. Qd6 Bd5 65. Qc5 Qg7 66. Qe3 Qe7 67. Qg1 Qf7 68. Qe3 Bc4 69. Bxc4 Qxc4 70. Kg3 Qf1 71. Kh4 $11 Kg6 72. Qg3+ Kh7 73. e6 $2 Qc4 74. Qe3 Qxe6 75. Kg3 Qc4 76. h4 (76. Kh4 $142 Kg6 77. Qg1+ Kh7 78. Qa7+ Kg6 79. Qe3) 76... Qg8+ $19 (76... Kg6 $142 77. Kf2 Qa2+ 78. Kg3 Kh5) 77. Kh2 Qg4 78. Qa7+ Kg6 79. Qc7 Qxh4+ 80. Kg2 Qg4+ 81. Kh2 Qe2+ 82. Kh1 Qf3+ 83. Kh2 e3 84. Qe5 Qe4 85. Qd6+ Kh5 86. Qc7 Qe6 87. c4 e2 0-1

[Event "WCCC U12 2019"]
[Site "Weifang"]
[Date "2019.08.22"]
[Round "2"]
[White "Dev, Shah"]
[Black "Makhmudjonov, Davlatbek"]
[Result "1-0"]
[ECO "A91"]
[WhiteElo "2161"]
[BlackElo "1870"]
[Annotator "NA"]
[PlyCount "111"]
[EventDate "2019.08.21"]
[EventType "swiss"]
[EventCountry "CHN"]
[SourceTitle "playchess.com"]
[Source "ChessBase"]
[SourceQuality "1"]
[TimeControl "40/5400+30:1800+30"]

1. d4 {[%emt 0:00:17]} d5 {[%emt 0:00:00]} 2. c4 {[%emt 0:00:05]} e6 {[%emt 0:00:02]} 3. Nc3 {[%emt 0:00:05]} f5 {[%emt 0:00:07]} 4. g3 {[%emt 0:09:11]} Nf6 {[%emt 0:00:01]} 5. Nh3 {[%emt 0:00:00]} c6 {[%emt 0:00:30]} 6. Bg2 {[%emt 0:00:25]} Be7 {[%emt 0:04:46]} 7. O-O {[%emt 0:01:32]} O-O {[%emt 0:01:39]} 8. Nf4 {[%emt 0:04:10]} Ne4 {[%emt 0:07:09]} 9. Qc2 {[%emt 0:05:10]} Bd6 {[%emt 0:16:14]} 10. f3 {[%emt 0:04:01]} Nxc3 {[%emt 0:02:24]} 11. Qxc3 {[%emt 0:00:03]} Qe7 {[%emt 0:00:21]} 12. Nd3 {[%emt 0:00:27]} Nd7 {[%emt 0:02:24]} 13. b3 {[%emt 0:03:43]} e5 {[%emt 0:01:17]} 14. dxe5 {[%emt 0:02:51]} Nxe5 {[%emt 0:00:09]} 15. cxd5 {[%emt 0:04:25]} cxd5 {[%emt 0:00:10]} 16. f4 {[%emt 0:09:35]} Nxd3 {[%emt 0:05:14]} 17. Qxd3 {[%emt 0:01:20]} Be6 {[%emt 0:03:48]} 18. Bb2 {[%emt 0:02:09]} Rac8 {[%emt 0:10:11]} 19. e3 {[%emt 0:07:07]} Kh8 {[%emt 0:02:53]} 20. Rad1 {[%emt 0:01:49]} Rfe8 {[%emt 0:10:51]} 21. Rfe1 {[%emt 0:00:43]} Bf7 {[%emt 0:12:04]} 22. Bf3 {[%emt 0:04:12]} a6 {[%emt 0:05:46]} 23. Re2 {[%emt 0:03:07]} Bc5 {[%emt 0:05:20]} 24. Be5 {[%emt 0:00:44]} Be6 {[%emt 0:00:09]} 25. Bd4 {[%emt 0:02:20]} Bb4 {[%emt 0:00:57]} 26. Kg2 {[%emt 0:00:20]} Rc6 {[%emt 0:00:14]} 27. h3 {[%emt 0:00:27]} Rec8 {[%emt 0:01:00]} 28. g4 {[%emt 0:01:57]} Qd7 {[%emt 0:00:55]} 29. g5 {[%emt 0:03:48]} Qf7 {[%emt 0:01:40]} 30. Bb2 {[%emt 0:04:24]} Qd7 {[%emt 0:05:03]} 31. h4 {[%emt 0:06:02]} Bc3 {[%emt 0:01:28]} 32. Ba3 {[%emt 0:00:25]} Rd8 {[%emt 0:00:39]} 33. h5 {[%emt 0:07:38]} h6 {[%emt 0:00:25]} 34. Kf2 {[%emt 0:01:00]} b5 {[%emt 0:00:33]} 35. Rg1 {[%emt 0:00:37]} b4 {[%emt 0:00:19]} 36. Bc1 {[%emt 0:01:05]} Rg8 {[%emt 0:00:45]} 37. Kf1 {[%emt 0:00:40]} Be5 {[%emt 0:00:32]} 38. Bd2 {[%emt 0:03:04]} Bc3 {[%emt 0:00:04]} 39. Reg2 {[%emt 0:02:35]} hxg5 {[%emt 0:00:31]} 40. Rxg5 {[%emt 0:00:29]} Bf6 {[%emt 0:00:30]} 41. R5g2 {[%emt 0:31:09]} Rc7 {[%emt 0:30:52]} 42. Bxb4 {[%emt 0:00:00]} d4 {[%emt 0:00:00]} 43. h6 {[%emt 0:00:00]} gxh6 {[%emt 0:00:00]} 44. Rxg8+ {[%emt 0:00:00]} Bxg8 {[%emt 0:00:00]} 45. Rg6 {[%emt 0:00:00]} Bg7 {[%emt 0:00:00]} 46. exd4 {[%emt 0:00:00]} Rc1+ {[%emt 0:00:00]} 47. Kg2 {[%emt 0:00:00]} Bxd4 {[%emt 0:00:00]} 48. Rxh6+ {[%emt 0:00:00]} Bh7 {[%emt 0:00:00]} 49. Be7 {[%emt 0:00:00]} Rg1+ {[%emt 0:00:00]} 50. Kh2 {[%emt 0:00:08]} Rg7 {[%emt 0:00:00]} 51. Bd6 {[%emt 0:01:44]} Qa7 {[%emt 0:00:00]} 52. Qxf5 {[%emt 0:02:29]} Bf6 {[%emt 0:05:00]} 53. Bc5 {[%emt 0:01:05]} Qc7 {[%emt 0:00:03]} 54. Be4 {[%emt 0:01:14]} Kg8 {[%emt 0:01:25]} 55. Qe6+ {[%emt 0:01:35]} Kh8 {[%emt 0:00:30]} 56. Qxf6 {[%emt 0:00:25]} 1-0

[Event "WCCC U12 2019"]
[Site "Weifang"]
[Date "2019.08.22"]
[Round "2"]
[White "Navumenka, Mikhei"]
[Black "Pistalovic, Slobodan"]
[Result "1-0"]
[ECO "D19"]
[WhiteElo "2148"]
[BlackElo "1858"]
[Annotator "NA"]
[PlyCount "47"]
[EventDate "2019.08.21"]
[EventType "swiss"]
[EventCountry "CHN"]
[SourceTitle "playchess.com"]
[Source "ChessBase"]
[SourceQuality "1"]
[TimeControl "40/5400+30:1800+30"]

1. d4 {[%emt 0:00:00]} d5 {[%emt 0:00:00]} 2. c4 {[%emt 0:00:37]} c6 {[%emt 0:00:00]} 3. Nf3 {[%emt 0:00:05]} Nf6 {[%emt 0:00:00]} 4. Nc3 {[%emt 0:00:07]} dxc4 {[%emt 0:00:09]} 5. a4 {[%emt 0:00:05]} Bf5 {[%emt 0:00:15]} 6. e3 {[%emt 0:00:12]} e6 {[%emt 0:00:03]} 7. Bxc4 {[%emt 0:00:06]} Bb4 {[%emt 0:00:05]} 8. O-O {[%emt 0:00:10]} O-O {[%emt 0:00:13]} 9. Qe2 {[%emt 0:00:58]} Bg4 {[%emt 0:00:41]} 10. h3 {[%emt 0:01:36]} Bxf3 {[%emt 0:00:51]} 11. Qxf3 {[%emt 0:00:09]} Nbd7 {[%emt 0:01:59]} 12. Rd1 {[%emt 0:07:45]} Rc8 {[%emt 0:01:01]} 13. Bb3 {[%emt 0:09:44]} Qe7 {[%emt 0:08:57]} 14. e4 {[%emt 0:05:15]} e5 {[%emt 0:14:43]} 15. Bg5 {[%emt 0:05:52]} exd4 {[%emt 0:14:08]} 16. Rxd4 {[%emt 0:01:37]} c5 {[%emt 0:20:37]} 17. Rxd7 {[%emt 0:18:36]} Qxd7 {[%emt 0:00:35]} 18. Bxf6 {[%emt 0:00:08]} c4 {[%emt 0:18:01]} 19. Qg3 {[%emt 0:01:54]} g6 {[%emt 0:00:22]} 20. Nd5 {[%emt 0:00:40]} cxb3 {[%emt 0:04:35]} 21. Nxb4 {[%emt 0:02:06]} Rc4 {[%emt 0:00:56]} 22. Qg5 {[%emt 0:02:10]} Qd6 {[%emt 0:09:04]} 23. Nd5 {[%emt 0:00:34]} Ra8 {[%emt 0:03:20]} 24. Qh6 {[%emt 0:00:30]} 1-0

[Event "WCCC U12 2019"]
[Site "Weifang"]
[Date "2019.08.22"]
[Round "2"]
[White "Milikow, Elie"]
[Black "Jin Yueheng"]
[Result "*"]
[ECO "B12"]
[WhiteElo "2134"]
[BlackElo "1832"]
[Annotator "NA"]
[PlyCount "40"]
[EventDate "2019.08.21"]
[EventType "swiss"]
[EventCountry "CHN"]
[SourceTitle "playchess.com"]
[Source "ChessBase"]
[SourceQuality "1"]
[TimeControl "40/5400+30:1800+30"]

1. e4 c6 2. d4 d5 3. e5 Bf5 4. h4 h5 5. Bd3 Bxd3 6. Qxd3 e6 7. Bg5 Be7 8. Nf3 Nd7 9. Nbd2 Qc7 10. Rc1 c5 11. c4 cxd4 12. Qxd4 Bxg5 13. hxg5 Ne7 14. Rc3 Qb6 15. Qxb6 Nxb6 16. g4 g6 17. Nd4 Kd7 18. gxh5 Rxh5 19. Rxh5 gxh5 20. Rf3 Rf8 *

[Event "WCCC U12 2019"]
[Site "Weifang"]
[Date "2019.08.22"]
[Round "2"]
[White "Milikow, Elie"]
[Black "Jin Yueheng"]
[Result "1-0"]
[ECO "B12"]
[WhiteElo "2134"]
[BlackElo "1832"]
[Annotator "NA"]
[PlyCount "96"]
[EventDate "2019.08.21"]
[EventType "swiss"]
[EventCountry "CHN"]
[SourceTitle "playchess.com"]
[Source "ChessBase"]
[SourceQuality "1"]
[TimeControl "40/5400+30:1800+30"]

1. e4 c6 2. d4 d5 3. e5 Bf5 4. h4 h5 5. Bd3 Bxd3 6. Qxd3 e6 7. Bg5 Be7 8. Nf3 Nd7 9. Nbd2 Qc7 10. Rc1 c5 11. c4 cxd4 12. Qxd4 Bxg5 13. hxg5 Ne7 14. Rc3 Qb6 15. Qxb6 Nxb6 16. g4 g6 17. Nd4 Kd7 18. gxh5 Rxh5 19. Rxh5 gxh5 20. Rf3 Rg8 21. Rxf7 Rxg5 22. f4 Rg4 23. b3 h4 24. c5 Nbc8 25. N2f3 h3 26. Ne2 Rg6 27. Rh7 Kc6 28. b4 Kb5 29. a3 a5 30. Nfd4+ Kc4 31. bxa5 Kxc5 32. Rxh3 Nd6 33. exd6 Kxd6 34. Rb3 Nc6 35. Rxb7 Nxa5 36. Rb6+ Ke7 37. f5 Rf6 38. Rxe6+ Rxe6 39. fxe6 Nc4 40. Nf4 Nxa3 41. Nxd5+ Ke8 42. Nc7+ Kd8 43. Ndb5 Nc4 44. Nd5 Kc8 45. e7 Kd7 46. Ke2 Nb6 47. Nbc7 Nxd5 48. Nxd5 Ke8 1-0

[Event "WCCC U12 2019"]
[Site "Weifang"]
[Date "2019.08.22"]
[Round "2"]
[White "Wu, David Tai-Wei"]
[Black "Mahendra Teja Mekala"]
[Result "0-1"]
[ECO "D87"]
[WhiteElo "2083"]
[BlackElo "1827"]
[Annotator "NA"]
[PlyCount "102"]
[EventDate "2019.08.21"]
[EventType "swiss"]
[EventCountry "CHN"]
[SourceTitle "playchess.com"]
[Source "ChessBase"]
[SourceQuality "1"]
[TimeControl "40/5400+30:1800+30"]

1. d4 Nf6 2. c4 g6 3. Nc3 d5 4. cxd5 Nxd5 5. e4 Nxc3 6. bxc3 Bg7 7. Bc4 c5 8. Ne2 Nc6 9. Be3 O-O 10. O-O Qc7 11. Rc1 Rd8 12. f4 e6 13. Qd2 Na5 14. Bd3 f5 15. e5 c4 16. Bc2 b6 17. Bf2 Bb7 18. Bh4 Qc6 19. Ng3 Rd7 20. Rf2 Rc8 21. Nf1 Bf8 22. Ne3 b5 23. Qe1 Qb6 24. Rb1 Rb8 25. a4 a6 26. Rf1 Bc6 27. Qe2 Qc7 28. axb5 axb5 29. Rfc1 b4 30. cxb4 Bxb4 31. Nxc4 Rxd4 32. Nxa5 Rd2 33. Qxd2 Bxd2 34. Nxc6 Rxb1 35. Rxb1 Qxc6 36. Bd1 Bxf4 37. Bf3 Qc5+ 38. Kh1 g5 39. Be1 Bxe5 40. Rd1 g4 41. Be2 Bxh2 42. Kxh2 Qe5+ 43. Bg3 Qxe2 44. Rd8+ Kf7 45. Rd7+ Kg6 46. Re7 Qe3 47. Bh4 f4 48. Re8 h6 49. Rf8 Kg7 50. Rc8 g3+ 51. Kh3 Qe5 0-1

[Event "WCCC U12 2019"]
[Site "Weifang"]
[Date "2019.08.22"]
[Round "2"]
[White "Zhao, Erick"]
[Black "Erkhes, Bayartnar"]
[Result "1-0"]
[ECO "C91"]
[WhiteElo "2072"]
[BlackElo "1819"]
[Annotator "NA"]
[PlyCount "70"]
[EventDate "2019.08.21"]
[EventType "swiss"]
[EventCountry "CHN"]
[SourceTitle "playchess.com"]
[Source "ChessBase"]
[SourceQuality "1"]
[TimeControl "40/5400+30:1800+30"]

1. e4 e5 2. Nf3 Nc6 3. Bb5 a6 4. Ba4 Nf6 5. O-O Be7 6. Re1 b5 7. Bb3 d6 8. c3 O-O 9. d4 Bg4 10. Be3 Na5 11. Bc2 Nd7 12. Nbd2 c5 13. h3 cxd4 14. cxd4 Bh5 15. Rc1 Rc8 16. Bd3 Bf6 17. d5 Bg6 18. b4 Nb7 19. Qb3 Be7 20. Qb1 Nf6 21. Rc6 Ra8 22. Rec1 Qb8 23. Nh4 Bd8 24. Ndf3 Nd7 25. Nxg6 hxg6 26. a4 bxa4 27. Bxa6 Bb6 28. Bxb6 Rxa6 29. Bc7 Qa8 30. b5 Ra7 31. b6 Ra6 32. Bxd6 Re8 33. Ba3 Rb8 34. Qb4 Na5 35. b7 Rxc6 1-0

[Event "WCCC U12 2019"]
[Site "Weifang"]
[Date "2019.08.22"]
[Round "2"]
[White "Seemann, Jakub"]
[Black "Li, Chengzhang"]
[Result "1-0"]
[ECO "B99"]
[WhiteElo "2047"]
[BlackElo "1768"]
[Annotator "NA"]
[PlyCount "51"]
[EventDate "2019.08.21"]
[EventType "swiss"]
[EventCountry "CHN"]
[SourceTitle "playchess.com"]
[Source "ChessBase"]
[SourceQuality "1"]
[TimeControl "40/5400+30:1800+30"]

1. e4 c5 2. Nf3 d6 3. d4 cxd4 4. Nxd4 Nf6 5. Nc3 a6 6. Bg5 e6 7. f4 Be7 8. Qf3 O-O 9. O-O-O Nbd7 10. g4 Qc7 11. Bxf6 Nxf6 12. g5 Nd7 13. h4 b5 14. Nf5 exf5 15. Nd5 Qd8 16. exf5 Nb6 17. f6 gxf6 18. gxf6 Bxf6 19. Rg1+ Kh8 20. Bd3 Bg7 21. Bxh7 Kxh7 22. Rxg7+ Kxg7 23. Rg1+ Kh6 24. Rg5 Qxg5 25. fxg5+ Kg6 26. Ne7+ 1-0

[Event "WCCC U12 2019"]
[Site "Weifang"]
[Date "2019.08.22"]
[Round "2"]
[White "Chen, Yuan"]
[Black "Zhou, Liran"]
[Result "1/2-1/2"]
[ECO "E81"]
[WhiteElo "1884"]
[BlackElo "2311"]
[Annotator "NA"]
[PlyCount "98"]
[EventDate "2019.08.21"]
[EventType "swiss"]
[EventCountry "CHN"]
[SourceTitle "playchess.com"]
[Source "ChessBase"]
[SourceQuality "1"]
[TimeControl "40/5400+30:1800+30"]

1. e4 {[%emt 0:00:00]} g6 {[%emt 0:00:00]} 2. d4 {[%emt 0:02:28]} Bg7 {[%emt 0:00:00]} 3. c4 {[%emt 0:02:10]} d6 {[%emt 0:00:20]} 4. Nc3 {[%emt 0:00:10]} Nf6 {[%emt 0:00:06]} 5. f3 {[%emt 0:03:31]} O-O {[%emt 0:00:27]} 6. Be3 {[%emt 0:00:06]} c5 {[%emt 0:01:49]} 7. dxc5 {[%emt 0:26:25]} dxc5 {[%emt 0:00:26]} 8. Qxd8 {[%emt 0:00:20]} Rxd8 {[%emt 0:00:06]} 9. Bxc5 {[%emt 0:17:18]} Nc6 {[%emt 0:01:12]} 10. Nge2 {[%emt 0:15:14]} b6 {[%emt 0:02:47]} 11. Ba3 {[%emt 0:01:23]} Ba6 {[%emt 0:00:58]} 12. Nb5 {[%emt 0:03:59]} Rac8 {[%emt 0:02:32]} 13. Nec3 {[%emt 0:01:10]} Nd7 {[%emt 0:13:33]} 14. O-O-O {[%emt 0:04:51]} Nc5 {[%emt 0:09:03]} 15. Be2 {[%emt 0:02:48]} Bb7 {[%emt 0:04:21]} 16. Rxd8+ {[%emt 0:04:25]} Rxd8 {[%emt 0:01:01]} 17. Rd1 {[%emt 0:00:35]} a6 {[%emt 0:02:41]} 18. Rxd8+ {[%emt 0:00:06]} Nxd8 {[%emt 0:00:04]} 19. Bxc5 {[%emt 0:01:10]} bxc5 {[%emt 0:00:10]} 20. Na3 {[%emt 0:00:06]} Nc6 {[%emt 0:00:50]} 21. Nc2 {[%emt 0:00:24]} e6 {[%emt 0:02:05]} 22. Ne1 {[%emt 0:01:16]} Bd4 {[%emt 0:03:25]} 23. Nd3 {[%emt 0:02:53]} Ne5 {[%emt 0:04:12]} 24. Nxe5 {[%emt 0:00:19]} Bxe5 {[%emt 0:00:05]} 25. g3 {[%emt 0:00:50]} Bxc3 {[%emt 0:00:26]} 26. bxc3 {[%emt 0:00:03]} e5 {[%emt 0:00:18]} 27. Kd2 {[%emt 0:02:55]} Kf8 {[%emt 0:00:06]} 28. Ke3 {[%emt 0:00:18]} Ke7 {[%emt 0:00:08]} 29. Bd3 {[%emt 0:00:33]} f6 {[%emt 0:00:51]} 30. g4 {[%emt 0:00:47]} g5 {[%emt 0:00:14]} 31. h3 {[%emt 0:00:33]} Kd6 {[%emt 0:00:10]} 32. Kd2 {[%emt 0:00:19]} Kc6 {[%emt 0:00:14]} 33. Kc2 {[%emt 0:00:09]} Kb6 {[%emt 0:00:06]} 34. Kb2 {[%emt 0:00:14]} Ka5 {[%emt 0:00:07]} 35. Ka3 {[%emt 0:01:32]} Bc6 {[%emt 0:00:10]} 36. Bc2 {[%emt 0:00:08]} Be8 {[%emt 0:00:25]} 37. Bd1 {[%emt 0:00:22]} h5 {[%emt 0:00:20]} 38. Bc2 {[%emt 0:01:06]} h4 {[%emt 0:00:04]} 39. Bd1 {[%emt 0:00:19]} Kb6 {[%emt 0:00:07]} 40. Bc2 {[%emt 0:00:39]} a5 {[%emt 0:00:04]} 41. Bd1 {[%emt 0:30:15]} Bf7 {[%emt 0:30:29]} 42. Be2 {[%emt 0:00:06]} Be8 {[%emt 0:01:48]} 43. Bd1 {[%emt 0:00:08]} Bd7 {[%emt 0:00:07]} 44. Bc2 {[%emt 0:00:14]} Kc7 {[%emt 0:00:44]} 45. Bd1 {[%emt 0:00:14]} Bc6 {[%emt 0:00:36]} 46. Bc2 {[%emt 0:00:29]} Kb6 {[%emt 0:01:09]} 47. Bd1 {[%emt 0:00:52]} Bb7 {[%emt 0:00:03]} 48. Bc2 {[%emt 0:00:17]} Ba6 {[%emt 0:00:06]} 49. Bd3 {[%emt 0:00:05]} Ka7 {[%emt 0:01:11]} 1/2-1/2

[Event "WCCC U12 2019"]
[Site "Weifang"]
[Date "2019.08.22"]
[Round "2"]
[White "Li Yihao"]
[Black "Pingin, Artem"]
[Result "1-0"]
[ECO "B86"]
[WhiteElo "1861"]
[BlackElo "2155"]
[Annotator "NA"]
[PlyCount "117"]
[EventDate "2019.08.21"]
[EventType "swiss"]
[EventCountry "CHN"]
[SourceTitle "playchess.com"]
[Source "ChessBase"]
[SourceQuality "1"]
[TimeControl "40/5400+30:1800+30"]

1. e4 c5 2. Nf3 d6 3. d4 cxd4 4. Nxd4 Nf6 5. Nc3 a6 6. Bg5 Nbd7 7. Bc4 e6 8. Bb3 Nc5 9. f3 Be7 10. Be3 Bd7 11. Qd2 b5 12. g4 b4 13. Nce2 a5 14. Ng3 h6 15. h4 Nxg4 16. fxg4 Bxh4 17. Qh2 Bxg3+ 18. Qxg3 Nxe4 19. Qg2 d5 20. g5 h5 21. a4 bxa3 22. Rxa3 a4 23. Ba2 Rb8 24. c3 Qe7 25. Nf3 Qd6 26. Kd1 e5 27. Kc1 Bc6 28. Qh2 f6 29. gxf6 gxf6 30. Qg2 Kd7 31. Bb1 Rbg8 32. Qh2 Kc8 33. Bc2 Qd7 34. Rd1 Nd6 35. b3 Rg4 36. Kb2 Qb7 37. Nd2 Kc7 38. Qf2 f5 39. Bc5 Rf8 40. Qh2 Qb5 41. Bxd6+ Kxd6 42. Qxh5 Bd7 43. Qh6+ Ke7 44. Nf3 Rf6 45. Qh7+ Kd6 46. c4 Rxc4 47. Bd3 axb3 48. Rxb3 Qc5 49. Bxc4 Qxc4 50. Qxd7+ Kxd7 51. Nxe5+ Kc7 52. Nxc4 dxc4 53. Rc3 Rc6 54. Rd4 Rc5 55. Rdxc4 Rxc4 56. Rxc4+ Kd6 57. Kc3 Ke5 58. Kd3 f4 59. Ke2 1-0